Cogmind - Beta 11.2 @@@ ROGUE MODE // 2023.01.13 @ 09:46:25 // Winter2022/Polymind Player: ExAliquo Result: Self-destructed Performance ------------- Evolutions (3) 1500 Regions Visited (8) 1600 Robots Destroyed (29) 145 Value Destroyed (708) 708 Prototype IDs (0) 0 Alien Tech Used (0) 0 Bonus (4157) 4157 TOTAL SCORE: 8050 Bonus ------- Polymind Skill 4214 High Alert Combat Kills 79 Friendly Fire -136 Cogmind --------- Core Integrity 587/700 Matter 0/0 Energy 25/25 System Corruption 20% Temperature Cool (62) Movement Hovering (76) Location -7/Factory Parts ------- > --- POWER (1) -------- Backup Power I > --- PROPULSION (2) --- Backup Propulsion I Backup Propulsion I > --- UTILITY (2) ------ Small Storage Unit > --- WEAPON (0) ------- (None) > --- INVENTORY (4) ---- Improved Titanium Leg Xenon Bombardment Thruster Peak State ------------ > --- POWER ------------ Light Deuterium Engine > --- PROPULSION ------- Combat Airjet Combat Airjet > --- UTILITY ---------- Launcher Guidance Computer Improved Light Armor Plating Shock Absorption System > --- WEAPON ----------- Mini Grenade Launcher > --- INVENTORY -------- (None) [Rating: 26] Favorites ----------- Power Light Ion Engine Engine Light Ion Engine Propulsion Combat Airjet Wheel Wheel Hover Unit Combat Airjet Utility Small Storage Unit Device Tractor Beam Storage Small Storage Unit Processor Launcher Guidance Computer Protection Improved Light Armor Plating Weapon Mini Grenade Launcher Launcher Mini Grenade Launcher Build | -11 -10 -10 -10 -9 -8 -7 -7 -7 ------- Run | Scr Mat Min Exi Min Mat Fac Was Fac Slots Evolved . | . . . . . . . . . Power . | . . . . . . . . . Propulsion . | . . . . . . . . . Utility . | . . . . . . . . . Weapon . | . . . . . . . . . Parts Attached . | . . . . . . . . . Power . | . . . . . . . . . Engine . | . . . . . . . . . Core . | . . . . . . . . . Reactor . | . . . . . . . . . Propulsion . | . . . . . . . . . Treads . | . . . . . . . . . Leg . | . . . . . . . . . Wheel . | . . . . . . . . . Hover . | . . . . . . . . . Flight . | . . . . . . . . . Utility . | . . . . . . . . . Device . | . . . . . . . . . Storage . | . . . . . . . . . Processor . | . . . . . . . . . Hackware . | . . . . . . . . . Protection . | . . . . . . . . . Artifact . | . . . . . . . . . Weapon . | . . . . . . . . . Energy Gun . | . . . . . . . . . Energy Cannon . | . . . . . . . . . Ballistic Gun . | . . . . . . . . . Ballistic Cannon . | . . . . . . . . . Launcher . | . . . . . . . . . Special Weapon . | . . . . . . . . . Impact Weapon . | . . . . . . . . . Slashing Weapon . | . . . . . . . . . Piercing Weapon . | . . . . . . . . . Special Melee Weapon . | . . . . . . . . . Unidentified Prototypes . | . . . . . . . . . Parts Lost 8 | . . . . . 6 . 2 . Power 1 | . . . . . 1 . . . Propulsion 3 | . . . . . 2 . 1 . Utility 3 | . . . . . 2 . 1 . Weapon 1 | . . . . . 1 . . . Highest Loss Streak 3 | . . . . . 3 . 1 . To Critical Strikes . | . . . . . . . . . Average Slot Usage (%) 91 | . 100 100 100 100 91 80 64 72 Engine 18 | . 23 25 25 16 16 16 6 17 Wheel 25 | . 46 50 50 11 16 32 22 . Hover 11 | . . . . 21 16 . . 35 Device 8 | . 6 . . 10 13 16 15 . Storage 14 | . 23 25 25 5 8 16 20 20 Processor 4 | . . . . 10 8 . . . Protection 3 | . . . . 10 4 . . . Launcher 4 | . . . . 10 6 . . . Naked Turns 30 | . 1 . . . 4 25 . . Heaviest Build 12 | 9 9 4 4 12 12 9 9 6 Greatest Support 32 | 32 32 20 20 24 32 32 32 12 Greatest Overweight (x) 1 | . . . . . . . 1 1 Average Overweight (x) . | . . . . . . . . . Largest Inventory Capacity 4 | 4 4 1 1 1 4 4 4 4 Average Capacity 2 | 3 2 1 1 1 2 3 4 4 Most Carried 4 | 1 2 . 1 1 4 1 1 2 Average Carried . | . . . . . . . 1 1 Final Capacity 4 | 4 1 1 1 1 . 4 4 4 Final Carried 2 | 1 . . 1 . . 1 1 2 Class Distribution -------------------- 35% | Recycler 32% | Demolisher 30% | Worker Dominant Class ---------------- Worker | -10/Materials Worker | -10/Mines Worker | -10/Exiles Demolisher | -9/Mines Demolisher | -8/Materials Recycler | -7/Factory Recycler | -7/Waste Recycler | -7/Factory Resources | -11 -10 -10 -10 -9 -8 -7 -7 -7 ----------- Run | Scr Mat Min Exi Min Mat Fac Was Fac Matter Collected 460 | . . . . 98 362 . . . Remotely . | . . . . . . . . . Salvage Created 610 | . . . . 19 591 . . . Parts 45 | . . . . 6 39 . . . Haulers Intercepted 2 | . . . . . 2 . . . Recyclers Shooed . | . . . . . . . . . Parts Field Recycled . | . . . . . . . . . Retrieved Matter . | . . . . . . . . . Parts Self-Destructed . | . . . . . . . . . Prevented . | . . . . . . . . . Kills | -11 -10 -10 -10 -9 -8 -7 -7 -7 ------- Run | Scr Mat Min Exi Min Mat Fac Was Fac Combat Hostiles Destroyed 17 | . . . . 5 12 . . . AOE 17 | . . . . 5 12 . . . Classes Destroyed 11 | . . . . 2 9 . . . Worker 4 | . . . . . 4 . . . Builder 1 | . . . . . 1 . . . Hauler 2 | . . . . . 2 . . . Recycler 1 | . . . . . 1 . . . Operator 1 | . . . . . 1 . . . Watcher 3 | . . . . . 3 . . . Swarmer 7 | . . . . 4 3 . . . Grunt 5 | . . . . . 5 . . . Sentry 3 | . . . . . 3 . . . Demolisher 1 | . . . . 1 . . . . Hunter 1 | . . . . . 1 . . . Best Kill Streak 9 | . . . . 4 9 . . . Combat Bots Only 5 | . . . . 4 5 . . . Max Kills in Single Turn 4 | . . . . 4 3 . . . Gunslinging . | . . . . . . . . . Exploded 4 | . . . . 4 3 . . . Melee . | . . . . . . . . . Uniques/NPCs Destroyed . | . . . . . . . . . Combat | -11 -10 -10 -10 -9 -8 -7 -7 -7 -------- Run | Scr Mat Min Exi Min Mat Fac Was Fac Damage Taken 1122 | . . . . 42 967 . 113 . Core 647 | . . . . 8 526 . 113 . Absorbed by Shields . | . . . . . . . . . Core Remaining (%) 66 | 100 . . . 96 4 . . . Volleys Fired 46 | . . . . 9 37 . . . Largest 1 | . . . . 1 1 . . . Hottest 30 | . . . . 30 30 . . . Shots Fired 46 | . . . . 9 37 . . . Gun . | . . . . . . . . . Cannon . | . . . . . . . . . Launcher 46 | . . . . 9 37 . . . Special . | . . . . . . . . . Kinetic . | . . . . . . . . . Thermal . | . . . . . . . . . Explosive 46 | . . . . 9 37 . . . Electromagnetic . | . . . . . . . . . Robot Hit Streak 17 | . . . . 9 17 . . . Robot Miss Streak 3 | . . . . . 3 . . . Penetration Max . | . . . . . . . . . Secondary Targets . | . . . . . . . . . Shots Hit Robots 32 | . . . . 9 23 . . . Core Hits 50 | . . . . 9 41 . . . Critical Kills . | . . . . . . . . . Critical Parts Destroyed . | . . . . . . . . . Critical Strikes . | . . . . . . . . . Melee Attacks . | . . . . . . . . . Impact . | . . . . . . . . . Slashing . | . . . . . . . . . Piercing . | . . . . . . . . . Sneak Attacks . | . . . . . . . . . Combat Hostiles . | . . . . . . . . . Follow-up Attacks . | . . . . . . . . . Damage Inflicted 2139 | . . . . 362 1776 1 . . Guns . | . . . . . . . . . Cannons . | . . . . . . . . . Explosions 2137 | . . . . 362 1775 . . . Melee . | . . . . . . . . . Ramming 2 | . . . . . 1 1 . . Kinetic . | . . . . . . . . . Thermal . | . . . . . . . . . Explosive 2137 | . . . . 362 1775 . . . Electromagnetic . | . . . . . . . . . Impact . | . . . . . . . . . Slashing . | . . . . . . . . . Piercing . | . . . . . . . . . Highest Corruption 20 | . . . . . 1 . 20 20 Average Corruption 7 | . . . . . 1 . 15 20 Corruption Purged . | . . . . . . . . . Corruption Blocked . | . . . . . . . . . Effects 19 | . . . . . 5 . 8 6 Message Errors 3 | . . . . . 2 . 1 . Heat Flow Errors 4 | . . . . . 1 . . 3 Energy Discharges 4 | . . . . . 1 . 3 . Data Loss (minor) 4 | . . . . . . . 2 2 Data Loss (major) 1 | . . . . . . . . 1 Alerts 1 | . . . . . 1 . . . Misdirections 2 | . . . . . . . 2 . Overload Shots . | . . . . . . . . . Overflow Damage 80 | . . . . . 80 . . . Projectiles . | . . . . . . . . . Explosions 80 | . . . . . 80 . . . Melee . | . . . . . . . . . Knockbacks . | . . . . . . . . . Impact . | . . . . . . . . . Kinetic . | . . . . . . . . . Secondary . | . . . . . . . . . Self-Inflicted Damage 55 | . . . . 17 38 . . . Shots 6 | . . . . 4 2 . . . Rammed 2 | . . . . . 1 1 . . Targets Rammed 2 | . . . . . 1 1 . . Kicked . | . . . . . . . . . Crushed . | . . . . . . . . . Highest Temperature 277 | . . . . 2 228 . . 277 Average Temperature 122 | . . . . 2 87 . . 142 Received Heat Transfer 351 | . . . . . 351 . . . Effects 2 | . . . . . 1 . . 1 Energy Bleed 2 | . . . . . 1 . . 1 Siege Activations . | . . . . . . . . . Robots Corrupted . | . . . . . . . . . Combat Hostiles . | . . . . . . . . . Parts Fried . | . . . . . . . . . Impact Corruptions . | . . . . . . . . . Robots Melted . | . . . . . . . . . Combat Hostiles . | . . . . . . . . . Parts Melted . | . . . . . . . . . Heat Transferred . | . . . . . . . . . Parts Sabotaged . | . . . . . . . . . Parts Stolen . | . . . . . . . . . Parts Stripped . | . . . . . . . . . Power Chain Reactions . | . . . . . . . . . Missiles Intercepted . | . . . . . . . . . Alert | -11 -10 -10 -10 -9 -8 -7 -7 -7 ------- Run | Scr Mat Min Exi Min Mat Fac Was Fac Peak Influence 817 | . 4 . . 240 817 276 96 39 Initial 261 | . . . . . 93 261 96 39 Average 274 | . 2 . . 151 546 272 73 39 Maximum Alert Level 3 | . . . . 1 3 1 . . Low Security (%) 54 | 100 100 100 . 56 20 . 100 100 Level 1 15 | . . . . 43 5 100 . . Level 2 9 | . . . . . 24 . . . Level 3 20 | . . . . . 49 . . . Level 4 . | . . . . . . . . . Level 5 . | . . . . . . . . . High Security . | . . . . . . . . . Max Security . | . . . . . . . . . Squads Dispatched 7 | . 1 . . . 6 . . . Investigation 3 | . 1 . . . 2 . . . Extermination . | . . . . . . . . . Reinforcement 4 | . . . . . 4 . . . Assault . | . . . . . . . . . Garrison . | . . . . . . . . . Intercept . | . . . . . . . . . Searches Triggered . | . . . . . . . . . Construction Impeded . | . . . . . . . . . Haulers Reinforced . | . . . . . . . . . Active Scanning Responses . | . . . . . . . . . Cargo Convoy Interrupts . | . . . . . . . . . Stealth | -11 -10 -10 -10 -9 -8 -7 -7 -7 --------- Run | Scr Mat Min Exi Min Mat Fac Was Fac Distress Signals 4 | . . . . . 4 . . . Communications Jammed . | . . . . . . . . . Distress Signals . | . . . . . . . . . Times Spotted 57 | . . . . 14 37 . 6 . Peak Tracking Total 8 | . . . . 8 8 . 6 . Tactical Retreats 6 | . . . . . 4 . 2 . Traps | -11 -10 -10 -10 -9 -8 -7 -7 -7 ------- Run | Scr Mat Min Exi Min Mat Fac Was Fac Traps Triggered 1 | . . . . . . 1 . . Indirectly . | . . . . . . . . . Trap Hack Attempts . | . . . . . . . . . Triggered . | . . . . . . . . . Disarmed . | . . . . . . . . . Reprogrammed 6 | . . . . . 6 . . . Reused 1 | . . . . . 1 . . . Traps Extracted . | . . . . . . . . . Installed . | . . . . . . . . . Triggered 1 | . . . . . 1 . . . Machines | -11 -10 -10 -10 -9 -8 -7 -7 -7 ---------- Run | Scr Mat Min Exi Min Mat Fac Was Fac Machines Disabled 5 | . . . . . 5 . . . Max in Single Turn 2 | . . . . . 2 . . . Machines Sabotaged . | . . . . . . . . . Garrisons Compromised . | . . . . . . . . . Overloaded Fab Kills . | . . . . . . . . . Hacking | -11 -10 -10 -10 -9 -8 -7 -7 -7 --------- Run | Scr Mat Min Exi Min Mat Fac Was Fac Machines Accessed 13 | . 2 . 4 . 5 . . 2 Terminals 7 | . 2 . . . 4 . . 1 Fabricators . | . . . . . . . . . Repair Stations 1 | . . . . . . . . 1 Recycling Units 1 | . . . . . 1 . . . Scanalyzers . | . . . . . . . . . Garrison Access . | . . . . . . . . . Total Hacks 26 | . 5 . 4 . 15 . . 2 Successful 15 | . 2 . 4 . 8 . . 1 Failed 11 | . 3 . . . 7 . . 1 Catastrophic 1 | . . . . . 1 . . . Database Lockouts . | . . . . . . . . . Manual 14 | . 5 . . . 8 . . 1 Terminals 19 | . 5 . . . 13 . . 1 Fabricators . | . . . . . . . . . Repair Stations 1 | . . . . . . . . 1 Recycling Units 2 | . . . . . 2 . . . Scanalyzers . | . . . . . . . . . Garrison Access . | . . . . . . . . . Terminal Hacks 9 | . . . 4 . 5 . . . Record 4 | . . . 4 . . . . . Robot Analysis 1 | . . . . . 1 . . . Level Access Points 1 | . . . . . 1 . . . Branch Access Points 1 | . . . . . 1 . . . Reprogram Traps 1 | . . . . . 1 . . . Zone Layout 1 | . . . . . 1 . . . Fabricator Hacks . | . . . . . . . . . Repair Station Hacks 1 | . . . . . . . . 1 Refit 1 | . . . . . . . . 1 Recycling Unit Hacks . | . . . . . . . . . Scanalyzer . | . . . . . . . . . Garrison Access Hacks . | . . . . . . . . . Unauthorized Hacks 5 | . 2 . . . 3 . . . Terminals 4 | . 2 . . . 2 . . . Botnet 2 | . 2 . . . . . . . Disrupt 1 | . . . . . 1 . . . Operators 1 | . . . . . 1 . . . Fabricators . | . . . . . . . . . Repair Stations . | . . . . . . . . . Recycling Units 1 | . . . . . 1 . . . Tunnel 1 | . . . . . 1 . . . Scanalyzers . | . . . . . . . . . Garrison Access . | . . . . . . . . . Data Cores Recovered . | . . . . . . . . . Used . | . . . . . . . . . Hacking Detections 6 | . 2 . . . 3 . . 1 Full Trace Events 2 | . 1 . . . 1 . . . Feedback Events 1 | . . . . . 1 . . . Corruption 1 | . . . . . 1 . . . Feedback Blocked . | . . . . . . . . . Robot Schematics Acquired . | . . . . . . . . . Robots Built . | . . . . . . . . . Authchips . | . . . . . . . . . Time . | . . . . . . . . . Total Robot Build Rating . | . . . . . . . . . Part Schematics Acquired . | . . . . . . . . . Parts Built . | . . . . . . . . . Authchips . | . . . . . . . . . Time . | . . . . . . . . . Total Part Build Rating . | . . . . . . . . . Parts Repaired . | . . . . . . . . . Time . | . . . . . . . . . Parts Recycled . | . . . . . . . . . Recycled Matter . | . . . . . . . . . Retrieved Matter . | . . . . . . . . . Retrieved Components . | . . . . . . . . . Parts Scanalyzed . | . . . . . . . . . Part Schematics Acquired . | . . . . . . . . . Parts Damaged . | . . . . . . . . . Bothacking | -11 -10 -10 -10 -9 -8 -7 -7 -7 ------------ Run | Scr Mat Min Exi Min Mat Fac Was Fac Used RIF Installer . | . . . . . . . . . Robots Hacked 3 | . . . . 1 1 1 . . Non-combat 2 | . . . . . 1 1 . . Combat 1 | . . . . 1 . . . . Robot Hacks Applied 3 | . . . . 1 1 1 . . find_recycling 2 | . . . . . 1 1 . . find_shortcuts 1 | . . . . 1 . . . . Relay Couplers Released . | . . . . . . . . . Fabnet Peak Effective % . | . . . . . . . . . Robots Rewired . | . . . . . . . . . Allies Hacked . | . . . . . . . . . Hacks Repelled . | . . . . . . . . . Allies | -11 -10 -10 -10 -9 -8 -7 -7 -7 -------- Run | Scr Mat Min Exi Min Mat Fac Was Fac Total Allies 2 | . . . . 1 . . 1 . Largest Group 1 | . . . . 1 1 . 1 . Highest-Rated Group 31 | . . . . 31 31 . 31 . Highest-Rated Ally 31 | . . . . 31 31 . 31 . Total Orders . | . . . . . . . . . Ally Attacks 3 | . . . . . . . 3 . Total Damage 64 | . . . . . . . 64 . Kills . | . . . . . . . . . Allies Corrupted . | . . . . . . . . . Allies Melted . | . . . . . . . . . Intel | -11 -10 -10 -10 -9 -8 -7 -7 -7 ------- Run | Scr Mat Min Exi Min Mat Fac Was Fac Robot Analysis Total 4 | 1 1 . . 1 1 . . . Derelict Logs Recovered 2 | . . 1 . 1 . . . . Drone Launches . | . . . . . . . . . Drone Recoveries . | . . . . . . . . . Exploration | -11 -10 -10 -10 -9 -8 -7 -7 -7 ------------- Run | Scr Mat Min Exi Min Mat Fac Was Fac Turns Passed 2372 | 9 235 128 351 388 820 105 179 157 Spaces Moved 2522 | 10 259 160 438 398 766 127 172 192 Core 121 | 4 1 . . . 9 49 39 19 Treads . | . . . . . . . . . Legs . | . . . . . . . . . Wheels 1500 | 6 258 160 438 103 324 78 133 . Hover 901 | . . . . 295 433 . . 173 Flight . | . . . . . . . . . Fastest Speed 50 | 50 50 80 80 76 50 50 100 76 Average Speed 83 | 80 86 80 80 77 85 80 100 78 Slowest Speed 100 | 100 100 80 80 80 100 100 100 100 Overloaded Moves . | . . . . . . . . . Propulsion Burnouts . | . . . . . . . . . Robots Hopped . | . . . . . . . . . Cave-ins Triggered . | . . . . . . . . . Exploration Rate (%) 41 | 2 52 37 68 67 63 3 77 6 Regions Visited 8 Branch Regions 3 Pre-discovered Areas 2 | . . 1 . . 1 . . . Known Exits Taken 1 | . . . . . 1 . . . Unknown Exits Taken 5 | 1 1 1 1 1 . . . . Scrap Searched 1 | . . . . 1 . . . . Spaces Dug 28 | . . . . . 28 . . . Terrain Destroyed 294 | . . . . 74 220 . . . Melee . | . . . . . . . . . Projectile . | . . . . . . . . . AOE 294 | . . . . 74 220 . . . Terrain Rammed . | . . . . . . . . . Walls Destroyed . | . . . . . . . . . Machines Disabled . | . . . . . . . . . Actions | -11 -10 -10 -10 -9 -8 -7 -7 -7 --------- Run | Scr Mat Min Exi Min Mat Fac Was Fac Total 2742 | 10 270 159 438 470 890 129 178 198 Wait 149 | . 11 . . 63 65 . 7 3 Move 2515 | 9 258 159 437 397 765 127 171 192 Hop . | . . . . . . . . . Pick Up 17 | 1 1 . 1 . 11 1 . 2 Fast Attach . | . . . . . . . . . Attach . | . . . . . . . . . Detach . | . . . . . . . . . Swap . | . . . . . . . . . Drop 1 | . . . . 1 . . . . Fire 46 | . . . . 9 37 . . . Melee . | . . . . . . . . . Ram 2 | . . . . . 1 1 . . Kick . | . . . . . . . . . Crush . | . . . . . . . . . Escape Stasis . | . . . . . . . . . Rewire . | . . . . . . . . . Trap . | . . . . . . . . . Miscellaneous 12 | . . . . . 11 . . 1 Route ------- -11/Scrapyard -10/Materials (discovered 3 exits: [*Mat] / [*Min x2]) -10/Mines -10/Exiles -9/Mines -8/Materials (discovered 3 exits: *Fac x3) -7/Factory -7/Waste -7/Factory History --------- Turn | Location | Event 1 | -11/Scrapyard | Discovered new exit (range 3) 10 | -11/Scrapyard | Entered Materials 58 | -10/Materials | Discovered new exit (range 14) 181 | -10/Materials | Discovered new exit (range 13) 217 | -10/Materials | Discovered new exit (range 7) 245 | -10/Materials | Entered Mines 253 | -10/Mines | Learned location of Zion (-7) 347 | -10/Mines | A weapon hastily lodged in a ceiling crevice suddenly fell to the ground 370 | -10/Mines | Deemed a non-threat by the Exiles lab entrance 370 | -10/Mines | Discovered new exit (range 5) 373 | -10/Mines | Entered Exiles 373 | -10/Exiles | Found Exiles lab abandoned 718 | -10/Exiles | Discovered new exit (range 10) 724 | -10/Exiles | Entered Mines 774 | -9/Mines | Discovered new exit (range 5) 786 | -9/Mines | Assembled infested the area 791 | -9/Mines | Assisted by a Guerilla fighting off Assembled 944 | -9/Mines | Received a Mining Laser from a helpful Derelict 994 | -9/Mines | Received a Rocket Launcher from a helpful Derelict 1011 | -9/Mines | Learned 2 Materials zone layouts 1112 | -9/Mines | Entered Materials 1112 | -8/Materials | Accompanied by 1 ally 1113 | -8/Materials | Identified exit to Factory 1482 | -8/Materials | Core integrity fell below 50% 1931 | -8/Materials | Core integrity fell below 20% 1932 | -8/Materials | Entered Factory 1959 | -7/Factory | Lost 3 parts (1p2n) 2037 | -7/Factory | Manually triggered Chute Trap 2037 | -7/Factory | Sucked down chute 2037 | -7/Factory | Entered Waste 2038 | -7/Waste | Met a frightened Derelict 2052 | -7/Waste | EMP discharged 2052 | -7/Waste | System corruption reached 10% 2083 | -7/Waste | Spotted C-40 Crusher 2083 | -7/Waste | Spotted C-40 Crusher 2089 | -7/Waste | Spotted C-40 Crusher 2093 | -7/Waste | Spotted C-40 Crusher 2093 | -7/Waste | Crushed by Compactor (1 part destroyed, 1 dropped) 2152 | -7/Waste | EMP discharged 2170 | -7/Waste | Spotted C-40 Crusher 2177 | -7/Waste | Crushed by Compactor (1 part destroyed, 1 dropped) 2203 | -7/Waste | Discovered new exit (range 13) 2216 | -7/Waste | Entered Factory 2373 | -7/Factory | Self-destructed Last Messages --------------- 02232_ K-01 Serf cleans the Nuclear Reactor. 02233_ System corrupted: Component data lost. 02235_ K-01 Serf cleans the Nuclear Reactor. 02235_ Connecting with Repair Station... >>Refit Scanning configuration... Attaching: Backup Power I x1 Backup Propulsion I x2 02249_ Acquired Imp. Titanium Leg. 02256_ System corrupted: Heat flow error (+165). 02289_ System corrupted: Heat flow error (+264). 02300_ Inserted Reflective Plating into recycling unit. 02307_ K-01 Serf cleans the Assembly Bed. 02310_ System corrupted: Component data lost. 02329_ System corrupted: Heat flow error (+218). 02330_ Connecting with Repair Station... 02340_ Overheating: Energy bleed (-4). 02358_ System corrupted: Substantial component data lost. 02372_ Acquired Xenon Bombardment Thruster. Map ----- +----------------------------------------------------+ | ?????????????????????????????????????????????????? | | ?????????????????????????????????????????????????? | | ?????????????????????????????????????????????????? | | ?????????????????????????????????????????????????? | | ?????????????????????????????????????????????????? | | ?????????????????????????????????????????????????? | | ?????????????????????????????????????????????????? | | ?????????????????????????????????????????????????? | | ?????????????????????????????????????????????????? | | ?????????????????????????????????????????????????? | | ?????????????????????????????????????????????????? | | ?????????????????????????????????????????????????? | | ?????????????????????????????????????????????????? | | ?????????????????????????????????????????????????? | | ?????????????????????????????????????????????????? | | ?????????????????????????????????????????????????? | | ?????????????????????????????????????????????????? | | ?????????????????????????????????????????????????? | | ?????????????????????????????????????????????????? | | ?????????????????????????????????????????????????? | | ???????#############################?????????????? | | ???????# # """ ?????????????? | | ???????# # "T" ???????????????? | | ???????# """ """ # """"????????????????? | | ???????# """ """ # """"" #????????????? | | ???????#"" """ """ # r """ #????????????? | | ???????#""" # #????????????? | | ???????#"R """ """ # """"" #????????????? | | ???????#""" """ """ # """""???????????????? | | ???????#"" """ """ # """ #????????????? | | ???????# # #????????????? | | ?!##########+##+#########+#########+#????????????? | | ### ?????????? | | ?????????? | | ?????????? | | ??????????? | | " " " " " " "??????????? | | " " " " " ?????????????? | | +## " " " " "??????????????? | | # ######+####### " " " " "??????????????? | | # ## ## " " " "????????????????? | | " # ## ## " "?"??????????????????? | | " # ## [ # " "????????????????????? | | " # ## # "?"????????????????????? | | + + ]=! # "?"????????????????????? | | " # ## == # ??????????????????????? | | " # ## =! ] # ???????????????????????? | | " # ## #??????????????????????????? | | #### ########+####??????????????????????????? | | #??# #??????????????????????????????????????? | +----------------------------------------------------+ Best States ------------- Heat Dissipation 31 Energy Generation 24 Energy Capacity 100 Matter Stores 150 Matter Capacity 150 Sight Range 16 Terrain Scan Density 10 Armor Coverage 150 Resistance: EX 75 Resistance: I 25 Evasion (%) 50 Launcher Accuracy 20 Item Schematics ----------------- None Robot Schematics ------------------ None Fabricated ------------ Nothing Alien Tech Used ----------------- None Achievements -------------- Wheee! Challenges ------------ None Polymind | -11 -10 -10 -10 -9 -8 -7 -7 -7 ---------- Run | Scr Mat Min Exi Min Mat Fac Was Fac Hosts 5 | 1 1 . . 1 1 1 . . Combat Hostiles 1 | . . . . 1 . . . . Allies . | . . . . . . . . . Unique Host Classes 3 | 1 1 . . 1 . . . . Average Host Suspicion 45 | 1 18 6 . 74 71 57 35 23 Unsuspicious Activity 270 | 2 80 63 . 63 55 2 . 5 Returns to Shadow 1 | . . . . . 1 . . . Fuzzy Dispatches . | . . . . . . . . . Protomatter Created 46 | . . . . 43 3 . . . Used 60 | 5 5 . . 40 5 5 . . Decayed . | . . . . . . . . . Highest Spend 40 | 5 5 . . 40 5 5 . . Top 5 Hosts by Kills: D-53 Grenadier (-9/Mines: 17) Game ------ Seed DecoyBombardmentBlade Manual? 0 Play Time 00:24:05 Cumulative 29.2 hours Start 2023.01.13 @ 09:23:34 End 2023.01.13 @ 09:46:25 Sessions 1 Manual Loads 0 Difficulty Rogue Special Mode Winter2022/Polymind Game No. 58 Rogue 58 Adventurer 0 Explorer 0 Win Type - Total 0 Types 0/0/0/0/0/0/0/0/0 Lore% 45 Gallery% 51 Achievement% 56 Wizard Run 0 Options --------- ASCII 0 Keyboard 0 Movement Numpad Keybinds 0 Fullscreen 1 Font 18/SmallcapsGlow Map View 76x50 Tactical HUD 1 Map Filters NONE Filters NONE Steam X RUN: 49dd05fa-f70f-4a1d-9be2-64d6e02c7c4d